bitfinex-derivatives/quotes_BTCF0:USTF0_20250318
["timestamp","ask_amount","ask_price","bid_price","bid_amount"]
[1742271845143,0.1927308,83180.0,83179.0,0.47716]
[1742271845938,0.5904308,83180.0,83179.0,0.11636]
[1742271846145,0.1202366,83176.0,83173.0,0.11636]
[1742271846345,0.1202366,83176.0,83174.0,0.0377]
[1742271846853,0.1202366,83176.0,83175.0,0.00018042]
[1742271847149,0.1942366,83176.0,83175.0,0.00018042]
[1742271847849,0.1942366,83176.0,83175.0,0.00118042]
[1742271848044,0.1942366,83176.0,83175.0,0.12141842]
[1742271848250,0.1942366,83176.0,83175.0,0.15651842]
[1742271848449,0.1942366,83176.0,83175.0,0.19411842]
[1742271856749,0.1202363,83177.0,83175.0,0.19411842]
[1742271856950,0.180336,83186.0,83185.0,0.1202221]
[1742271857155,0.1803299,83188.0,83187.0,0.1202207]
[1742271858452,0.2538299,83188.0,83187.0,0.0726]
[1742271860558,0.2538299,83188.0,83187.0,0.0349]
[1742271867364,0.2538299,83188.0,83185.0,0.0368]
[1742271867365,0.1803541,83178.0,83175.0,0.06029862]
[1742271867661,0.1803541,83178.0,83177.0,0.0709]
[1742271868060,0.1803541,83178.0,83177.0,0.107]
[1742271868761,0.1803541,83178.0,83177.0,0.2272351]
[1742271868966,0.1803541,83178.0,83177.0,0.107]
[1742271869353,0.1803541,83178.0,83177.0,0.108]
[1742271870257,0.1803541,83178.0,83177.0,0.109]
[1742271871665,0.1803541,83178.0,83177.0,0.2292351]
[1742271882567,0.2169541,83178.0,83177.0,0.2292351]
[1742271883074,0.1803541,83178.0,83177.0,0.2292351]
[1742271884270,0.1803541,83178.0,83177.0,0.2282351]
[1742271884477,0.1803541,83178.0,83177.0,0.2302351]
[1742271884779,0.1803541,83178.0,83177.0,0.2312351]
[1742271885277,0.1803541,83178.0,83177.0,0.2292351]
[1742271885470,0.1803541,83178.0,83177.0,0.2312351]
[1742271888179,0.1803541,83178.0,83177.0,0.2302351]
[1742271888374,0.2168541,83178.0,83177.0,0.2282351]
[1742271888580,0.2168541,83178.0,83177.0,0.2292351]
[1742271890977,0.1803541,83178.0,83177.0,0.4692351]
[1742271891779,0.1803541,83178.0,83177.0,0.4702351]
[1742271893780,0.1803541,83178.0,83177.0,0.4692351]
[1742271895878,0.2168541,83178.0,83177.0,0.4692351]
[1742271897988,0.1803541,83178.0,83177.0,0.4692351]
[1742271898486,0.2165541,83178.0,83177.0,0.4692351]
[1742271903287,0.2165541,83178.0,83177.0,0.4682351]
[1742271903488,0.2165541,83178.0,83177.0,0.11832]
[1742271903691,0.5773541,83178.0,83177.0,0.002]
[1742271904287,0.2165541,83178.0,83177.0,0.002]
[1742271905389,0.2165541,83178.0,83177.0,0.1222351]
[1742271905688,0.2165541,83178.0,83177.0,0.002]
[1742271905878,0.2165541,83178.0,83177.0,0.001]
[1742271906080,0.2165541,83178.0,83177.0,0.002]
[1742271911778,0.5773541,83178.0,83177.0,0.002]
[1742271912194,0.6115541,83178.0,83177.0,0.1222351]
[1742271912695,0.6115541,83178.0,83177.0,0.1938351]
[1742271913897,0.2507541,83178.0,83177.0,0.1938351]
[1742271915091,0.1305175,83178.0,83177.0,0.4638351]
[1742271916697,0.0704,83178.0,83177.0,0.4638351]
[1742271917000,0.1202279,83182.0,83181.0,0.1202293]
[1742271917203,0.1202279,83182.0,83181.0,0.2365093]
[1742271917398,0.1202279,83182.0,83181.0,0.3078093]
[1742271917698,0.1566279,83182.0,83181.0,0.3078093]
[1742271917900,0.33639598,83187.0,83186.0,0.1202221]
[1742271918283,0.33639598,83187.0,83186.0,0.2255221]
[1742271918903,0.21617528,83187.0,83186.0,0.2255221]
[1742271919199,0.21617528,83187.0,83186.0,0.4755221]
[1742271919590,0.1202187,83189.0,83188.0,0.1202192]
[1742271919788,0.1202187,83189.0,83188.0,0.4864992]
[1742271920898,0.1912187,83189.0,83188.0,0.4864992]
[1742271921597,0.1912187,83189.0,83188.0,0.11628]
[1742271922297,0.1912187,83189.0,83188.0,0.2364992]
[1742271922695,0.1912187,83189.0,83188.0,0.3058992]
[1742271923502,0.1912187,83189.0,83188.0,0.18568]
[1742271924098,0.1912187,83189.0,83188.0,0.3058992]
[1742271924499,0.1912187,83189.0,83188.0,0.18568]
[1742271924994,0.1912187,83189.0,83188.0,0.3058992]
[1742271928694,0.1912187,83189.0,83188.0,0.3068992]
[1742271929594,0.1912187,83189.0,83188.0,0.3078992]
[1742271932192,0.1912187,83189.0,83188.0,0.3068992]
[1742271932396,0.1912187,83189.0,83188.0,0.3078992]
[1742271936517,0.1912187,83189.0,83188.0,0.002]
[1742271936902,0.1912187,83189.0,83188.0,0.0367]
[1742271938514,0.1912187,83189.0,83188.0,0.0357]
[1742271939413,0.1912187,83189.0,83188.0,0.0347]
[1742271943410,0.1912187,83189.0,83188.0,0.1549192]
[1742271946614,0.1912187,83189.0,83188.0,0.1880192]
[1742271949315,0.1912187,83189.0,83188.0,0.1890192]
[1742271950219,0.1912187,83189.0,83188.0,0.1900192]
[1742271950416,0.1202162,83191.0,83190.0,0.180323]
[1742271951022,0.1873162,83191.0,83190.0,0.249223]
[1742271951319,0.1873162,83191.0,83190.0,0.0689]
[1742271952111,0.1202178,83189.0,83188.0,0.002]
[1742271952522,0.1202207,83187.0,83186.0,0.0339]
[1742271952718,0.1202207,83187.0,83186.0,0.0677]
[1742271952919,0.1896207,83187.0,83186.0,0.0677]
[1742271953623,0.1896207,83187.0,83186.0,0.1879221]
[1742271953920,0.1896207,83187.0,83186.0,0.0677]
[1742271959425,0.1896207,83187.0,83186.0,0.1879221]
[1742271960124,0.1202207,83187.0,83186.0,0.1879221]
[1742271960527,0.1555207,83187.0,83186.0,0.1879221]
[1742271960922,0.33577862,83187.0,83186.0,0.1879221]
[1742271961712,0.36917862,83187.0,83186.0,0.1879221]
[1742271961914,0.36917862,83187.0,83186.0,0.3041621]
[1742271962718,0.33577862,83187.0,83186.0,0.3041621]
[1742271963527,0.1555207,83187.0,83186.0,0.3041621]
[1742271963725,0.24036752,83188.0,83186.0,0.3041621]
[1742271963924,0.18025792,83188.0,83187.0,0.1202207]
[1742271964126,0.18025792,83188.0,83187.0,0.3802207]
[1742271964326,0.30047712,83188.0,83187.0,0.4464207]
[1742271964522,0.18025792,83188.0,83187.0,0.4464207]
[1742271965727,0.18025792,83188.0,83187.0,0.4484207]
[1742271965927,0.1202153,83191.0,83190.0,0.1202163]
[1742271966127,0.1202153,83191.0,83190.0,0.4810163]
[1742271966845,0.1202153,83191.0,83190.0,0.5148163]
[1742271967044,0.00018042,83192.0,83190.0,0.5148163]
[1742271967045,0.00018042,83192.0,83191.0,0.1202149]
[1742271967242,0.00018042,83192.0,83191.0,0.1879149]
[1742271967442,0.00018042,83192.0,83191.0,0.2217149]
[1742271967641,0.00018042,83192.0,83191.0,0.4917149]
[1742271967948,0.18025792,83199.0,83198.0,0.1202048]
[1742271968142,0.18025792,83199.0,83198.0,0.8372448]
[1742271968542,0.18025792,83199.0,83198.0,0.8696448]
[1742271968745,0.18025792,83199.0,83198.0,0.9034448]
[1742271969643,0.18025792,83199.0,83198.0,1.1734448]
[1742271969949,0.18025792,83199.0,83198.0,0.9034448]
[1742271972153,0.1201951,83205.0,83204.0,0.1201961]
[1742271972350,0.1201951,83205.0,83204.0,0.3263961]
[1742271972551,0.1535951,83205.0,83204.0,0.3916961]
[1742271972750,0.1535951,83205.0,83204.0,0.4038135]
[1742271973955,0.1535951,83205.0,83204.0,0.41276888]
[1742271974343,0.1871951,83205.0,83204.0,0.41276888]
[1742271975553,0.1535951,83205.0,83204.0,0.41276888]
[1742271975942,0.1535951,83205.0,83204.0,0.41476888]
[1742271976139,0.1535951,83205.0,83204.0,0.41976888]
[1742271976343,0.1201951,83205.0,83204.0,0.41976888]
[1742271976543,0.1201951,83205.0,83204.0,0.41776888]
[1742271976746,0.06027569,83207.0,83206.0,0.1201932]
[1742271976747,0.00017969,83207.0,83206.0,0.1201932]
[1742271976947,0.00017969,83207.0,83206.0,0.7309932]
[1742271978556,0.00017969,83207.0,83206.0,0.7349932]
[1742271979149,0.00017969,83207.0,83206.0,0.7369932]
[1742271980653,0.18025792,83228.0,83227.0,0.1201629]
[1742271980860,0.28598297,83228.0,83227.0,0.5971629]
[1742271981340,0.31978297,83228.0,83227.0,0.5971629]
[1742271981744,0.31978297,83228.0,83227.0,0.5482629]
[1742271981945,0.35288297,83228.0,83227.0,0.3608]
[1742271983454,0.1201658,83225.0,83224.0,0.1162]
[1742271984057,0.120173,83220.0,83219.0,0.00018031]
[1742271984364,0.480973,83220.0,83219.0,0.00018031]
[1742271984856,0.480973,83220.0,83205.0,0.0647]
[1742271984857,0.1201947,83205.0,83204.0,0.02107278]
[1742271985155,0.0600965,83207.0,83203.0,0.1162]
[1742271985156,0.1201961,83204.0,83203.0,0.1162]
[1742271985348,0.1536961,83204.0,83203.0,0.1162]
[1742271986258,0.1516961,83204.0,83203.0,0.1162]
[1742271987861,0.1466961,83204.0,83203.0,0.1162]
[1742271988160,0.1466961,83204.0,83203.0,0.2363975]
[1742271988661,0.1466961,83204.0,83203.0,0.2708975]
[1742271988866,0.1466961,83204.0,83203.0,0.3051975]
[1742271989359,0.1466961,83204.0,83203.0,0.2708975]
[1742271990455,0.1466961,83204.0,83203.0,0.1507]
[1742271990652,0.1466961,83204.0,83203.0,0.2708975]
[1742271995367,0.1466961,83204.0,83203.0,0.1507]
[1742271995564,0.1466961,83204.0,83203.0,0.1172]
[1742271995866,0.1466961,83204.0,83203.0,0.001]
[1742272001170,0.1811961,83204.0,83203.0,0.001]
[1742272002270,0.19336243,83204.0,83203.0,0.001]
[1742272002468,0.1202077,83196.0,83195.0,0.00018031]
[1742272002660,0.4810077,83196.0,83195.0,0.00018031]
[1742272003463,0.5849077,83196.0,83195.0,0.00018031]
[1742272003859,0.5849077,83196.0,83195.0,0.00118031]
[1742272004263,0.5849077,83196.0,83195.0,0.00418031]
[1742272006573,0.59397077,83196.0,83195.0,0.00418031]
[1742272006770,0.5849077,83196.0,83195.0,1e-08]
[1742272008376,0.5495077,83196.0,83195.0,1e-08]
[1742272009073,0.55858069,83196.0,83195.0,1e-08]
[1742272010469,0.5495077,83196.0,83195.0,1e-08]
[1742272024885,0.5595077,83196.0,83195.0,1e-08]
[1742272028987,0.1202105,83194.0,83193.0,0.0676]
[1742272029385,0.1859105,83194.0,83193.0,0.0676]
[1742272029884,0.19824493,83194.0,83193.0,0.0676]
[1742272033290,0.1859105,83194.0,83193.0,0.0676]
[1742272047094,0.5467105,83194.0,83193.0,0.0676]
[1742272048894,0.5133105,83194.0,83193.0,0.0676]
[1742272049092,0.5460105,83194.0,83193.0,0.0676]
[1742272053711,0.66805323,83194.0,83193.0,0.0676]
[1742272059610,0.30725323,83194.0,83193.0,0.0676]
[1742272059812,0.66805323,83194.0,83193.0,0.0676]
[1742272068621,0.66805323,83194.0,83193.0,0.07935953]
[1742272068819,0.66805323,83194.0,83193.0,0.0676]
[1742272070214,0.5460105,83194.0,83193.0,0.0676]
[1742272073322,0.1202192,83188.0,83187.0,0.00018031]
[1742272073622,0.0601079,83191.0,83180.0,0.0335]
[1742272073623,0.1202293,83181.0,83180.0,0.0335]
[1742272073821,0.4810293,83181.0,83180.0,0.0639]
[1742272074017,0.5135293,83181.0,83180.0,0.0639]
[1742272074622,0.5430293,83181.0,83180.0,0.0944]
[1742272076425,0.5430293,83181.0,83180.0,0.0974]
[1742272076634,0.75950805,83181.0,83180.0,0.0984]
[1742272078830,0.5430293,83181.0,83180.0,0.0984]
[1742272080435,0.1822293,83181.0,83180.0,0.0984]
[1742272085551,0.1182293,83181.0,83180.0,0.0984]
[1742272086548,0.1496293,83181.0,83180.0,0.0984]
[1742272086748,0.1806293,83181.0,83180.0,0.0984]
[1742272088548,0.1496293,83181.0,83180.0,0.0984]
[1742272089350,0.1182293,83181.0,83180.0,0.0984]
[1742272090052,0.1496293,83181.0,83180.0,0.0984]
[1742272094650,0.1182293,83181.0,83180.0,0.0984]
[1742272094855,0.1513293,83181.0,83180.0,0.0984]
[1742272095051,0.1182293,83181.0,83180.0,0.0984]
[1742272095456,0.1182293,83181.0,83180.0,0.2186308]
[1742272095760,0.1202277,83183.0,83182.0,0.1202264]
[1742272095949,0.1202277,83183.0,83182.0,0.1860264]
[1742272096346,0.1202277,83183.0,83182.0,0.4460264]
[1742272096549,0.1202277,83183.0,83182.0,0.5061396]
[1742272096550,0.1202264,83183.0,83182.0,0.5061396]
[1742272096755,0.060112,83185.0,83184.0,0.120225]
[1742272096959,0.060112,83185.0,83184.0,0.236345]
[1742272098755,0.060112,83185.0,83184.0,0.238345]
[1742272102867,0.180332,83187.0,83186.0,0.1202221]
[1742272103464,0.180332,83187.0,83186.0,0.1834221]
[1742272104365,0.180332,83187.0,83186.0,0.1844221]
[1742272106475,0.213532,83187.0,83186.0,0.1844221]
[1742272111173,0.180332,83187.0,83186.0,0.1844221]
[1742272111478,0.0601106,83187.0,83186.0,0.1844221]
[1742272112272,0.12039961,83189.0,83188.0,0.1202192]
[1742272112471,0.00018031,83189.0,83188.0,0.4002192]
[1742272112676,0.00018031,83189.0,83188.0,0.4631192]
[1742272112970,0.17974263,83194.0,83193.0,0.120212]
[1742272113177,0.17974263,83194.0,83193.0,0.827092]
[1742272113765,0.29995313,83194.0,83193.0,0.889492]
[1742272114669,0.1202105,83194.0,83193.0,0.889492]
[1742272115670,0.1212105,83194.0,83193.0,0.889492]
[1742272117076,0.001,83194.0,83193.0,0.889492]
[1742272118082,0.1212105,83194.0,83193.0,0.889492]
[1742272119384,0.001,83194.0,83193.0,0.889492]
[1742272120283,0.031,83194.0,83193.0,0.889492]
[1742272122583,0.0628,83194.0,83193.0,0.889492]
[1742272123479,0.031,83194.0,83193.0,0.889492]
[1742272123879,0.001,83194.0,83193.0,0.889492]
[1742272133595,0.0637,83194.0,83193.0,0.889492]
[1742272140996,0.1839105,83194.0,83193.0,0.889492]
[1742272143900,0.1839105,83194.0,83193.0,0.827092]
[1742272144095,0.2161105,83194.0,83193.0,0.859392]
[1742272144295,0.2161105,83194.0,83193.0,0.891092]
[1742272146191,0.1839105,83194.0,83193.0,0.891092]
[1742272150608,0.1839105,83194.0,83193.0,0.530292]
[1742272150908,0.1839105,83194.0,83193.0,0.891092]
[1742272162409,0.1829105,83194.0,83193.0,0.891092]
[1742272162611,0.1829105,83194.0,83193.0,0.899092]
[1742272163805,0.1829105,83194.0,83193.0,0.894092]
[1742272164006,0.1829105,83194.0,83193.0,0.899092]
[1742272164507,0.1829105,83194.0,83193.0,1.18427952]
[1742272164707,0.1829105,83194.0,83193.0,1.18627952]
[1742272165616,0.1829105,83194.0,83193.0,1.18527952]
[1742272166911,0.1829105,83194.0,83193.0,1.18127952]
[1742272167120,0.1829105,83194.0,83193.0,1.18527952]
[1742272167315,0.1829105,83194.0,83193.0,0.897092]
[1742272174823,0.1829105,83194.0,83193.0,0.895092]
[1742272175024,0.1829105,83194.0,83193.0,0.897092]
[1742272176121,0.1829105,83194.0,83193.0,0.896092]
[1742272182421,0.1829105,83194.0,83193.0,1.18427952]
[1742272186621,0.1829105,83194.0,83193.0,1.18127952]
[1742272186926,0.1829105,83194.0,83193.0,1.21477952]
[1742272188217,0.0627,83194.0,83193.0,1.21477952]
[1742272188418,0.1829105,83194.0,83193.0,1.21477952]
[1742272192930,0.0627,83194.0,83193.0,1.21477952]
[1742272193532,0.0627,83194.0,83193.0,0.926592]
[1742272195229,0.36847855,83218.0,83201.0,0.1202004]
[1742272195423,0.03138031,83202.0,83201.0,0.8669204]
[1742272195619,0.03138031,83202.0,83201.0,0.9290204]
[1742272196531,0.06238031,83202.0,83201.0,0.9628204]
[1742272198738,0.18257931,83202.0,83201.0,0.9628204]
[1742272200432,0.18257931,83202.0,83201.0,0.3618]
[1742272200628,0.21347931,83202.0,83201.0,0.4820004]
[1742272201440,0.18257931,83202.0,83201.0,0.4820004]
[1742272201628,0.18257931,83202.0,83201.0,0.5452004]
[1742272205141,0.06238031,83202.0,83201.0,0.8152004]
[1742272205341,0.18257931,83202.0,83201.0,0.8152004]
[1742272208637,0.21417931,83202.0,83201.0,0.8152004]
[1742272208935,0.21417931,83202.0,83201.0,0.11692]
[1742272209141,0.21417931,83202.0,83201.0,0.001]
[1742272209339,0.57497931,83202.0,83201.0,0.001]
[1742272209642,0.1202033,83199.0,83198.0,0.21611202]
[1742272209835,0.2361233,83199.0,83198.0,0.21611202]
[1742272210828,0.2361233,83199.0,83198.0,0.21811202]
[1742272211547,0.1202033,83199.0,83198.0,0.21811202]
[1742272211844,0.2361233,83199.0,83198.0,0.21811202]
[1742272212136,0.2361233,83199.0,83198.0,0.002]
[1742272212351,0.2673233,83199.0,83198.0,0.002]
[1742272213244,0.1202105,83194.0,83185.0,0.1202234]
[1742272213439,0.4810105,83194.0,83184.0,0.1202244]
[1742272213833,0.4810105,83194.0,83185.0,0.1202231]
[1742272214152,0.5747105,83194.0,83184.0,0.1202244]
[1742272214349,0.5747105,83194.0,83193.0,0.00318031]
[1742272214637,0.1202279,83182.0,83181.0,0.11592]
[1742272214838,0.1202279,83182.0,83181.0,0.1202293]
[1742272215241,0.1182279,83182.0,83181.0,0.1835293]
[1742272215948,0.1182279,83182.0,83181.0,0.1885293]
[1742272216134,0.064,83184.0,83182.0,0.1202264]
[1742272216330,0.153225,83184.0,83183.0,0.1202264]
[1742272216547,0.153225,83184.0,83183.0,0.4650264]
[1742272217539,0.154225,83184.0,83183.0,0.4670264]
[1742272218338,0.154225,83184.0,83183.0,0.4710264]
[1742272225538,0.184325,83184.0,83183.0,0.4710264]
[1742272227547,0.184325,83184.0,83183.0,0.006]
[1742272227736,0.217325,83184.0,83183.0,0.006]
[1742272229052,0.217325,83184.0,83183.0,0.002]
[1742272229443,0.1192264,83183.0,83182.0,0.1535276]
[1742272229842,0.1835264,83183.0,83182.0,0.1535276]
[1742272230753,0.1835264,83183.0,83182.0,0.0353]
[1742272231052,0.1835264,83183.0,83182.0,0.002]
[1742272231450,0.3335264,83183.0,83182.0,0.002]
[1742272231753,0.1202394,83174.0,83173.0,0.21629233]
[1742272231949,0.4810394,83174.0,83173.0,0.21629233]
[1742272232351,0.4810394,83174.0,83173.0,0.01203888]
[1742272232546,0.5758394,83174.0,83173.0,0.01203888]
[1742272232748,0.5748394,83174.0,83173.0,0.00018031]
[1742272233258,0.5748394,83174.0,83173.0,0.00118031]
[1742272233756,0.5748394,83174.0,83173.0,0.00318031]
[1742272235254,0.5748394,83174.0,83173.0,0.01551371]
[1742272235460,0.5748394,83174.0,83173.0,0.00318031]
[1742272237353,0.2140394,83174.0,83173.0,0.00318031]
[1742272237652,0.5748394,83174.0,83173.0,0.00318031]
[1742272237857,0.1202539,83164.0,83163.0,0.11592]
[1742272238161,0.1202539,83164.0,83163.0,0.2983754]
[1742272238954,0.1212539,83164.0,83163.0,0.17912]
[1742272239154,0.1212539,83164.0,83163.0,0.19119188]
[1742272239461,0.1212539,83164.0,83163.0,0.19519188]
[1742272239862,0.1212539,83164.0,83163.0,0.07927188]
[1742272240365,0.1212539,83164.0,83163.0,0.07527188]
[1742272240666,0.1212539,83164.0,83163.0,0.19552728]
[1742272242263,0.1202539,83164.0,83163.0,0.19452728]
[1742272242459,0.0601205,83173.0,83164.0,0.0601269]
[1742272242761,0.240493,83173.0,83172.0,0.1202366]
[1742272243355,0.240493,83173.0,83172.0,0.1807366]
[1742272244064,0.241493,83173.0,83172.0,0.1807366]
[1742272244447,0.1212439,83173.0,83172.0,0.1807366]
[1742272244855,0.0611205,83173.0,83172.0,0.1807366]
[1742272245364,0.0631205,83173.0,83172.0,0.1807366]
[1742272245564,0.0621205,83173.0,83172.0,0.1807366]
[1742272245761,0.0621205,83173.0,83172.0,0.0605]
[1742272245762,0.0601205,83173.0,83172.0,0.0605]
[1742272245967,0.0601205,83173.0,83172.0,0.0615]
[1742272246466,0.1218205,83173.0,83172.0,0.001]
[1742272247166,0.1182481,83168.0,83167.0,0.0317]
[1742272247660,0.4790481,83168.0,83167.0,0.0317]
[1742272248065,0.5444481,83168.0,83167.0,0.1519496]
[1742272248467,0.5444481,83168.0,83167.0,0.0317]
[1742272249757,0.5444481,83168.0,83167.0,0.1839496]
[1742272249964,0.5454481,83168.0,83167.0,0.1839496]
[1742272250360,0.5454481,83168.0,83167.0,0.0637]
[1742272250958,0.1202525,83165.0,83164.0,0.0304]
[1742272251168,0.1202525,83165.0,83164.0,0.0628]
[1742272251858,0.1847525,83165.0,83164.0,0.0628]
[1742272256676,0.1847525,83165.0,83164.0,0.1830539]
[1742272256972,0.1847525,83165.0,83164.0,0.0628]
[1742272257567,0.1202525,83165.0,83164.0,0.0628]
[1742272257775,0.1202525,83165.0,83164.0,0.1830539]
[1742272260675,0.1511525,83165.0,83164.0,0.0628]
[1742272260877,0.1821525,83165.0,83164.0,0.0628]
[1742272261977,0.1821525,83165.0,83164.0,0.1830539]
[1742272262876,0.1821525,83165.0,83164.0,0.0628]
[1742272263980,0.1202582,83161.0,83160.0,0.00901879]
[1742272264183,0.1202582,83161.0,83160.0,0.04071879]
[1742272264367,0.1528582,83161.0,83160.0,0.04071879]
[1742272265477,0.1830582,83161.0,83160.0,0.07151879]
[1742272266271,0.1830582,83161.0,83160.0,0.07251879]
[1742272268175,0.1830582,83161.0,83160.0,0.01001879]
[1742272268372,0.1202626,83158.0,83157.0,4e-08]
[1742272268571,0.8469826,83158.0,83157.0,4e-08]
[1742272269373,0.8469826,83158.0,83148.0,0.01082406]
[1742272269374,0.060136,83152.0,83148.0,0.01082406]
[1742272269578,0.4810756,83149.0,83148.0,0.01082406]
[1742272271470,0.4840756,83149.0,83148.0,0.01082406]
[1742272272576,0.4870756,83149.0,83148.0,0.07382406]
[1742272273271,0.4850756,83149.0,83148.0,0.07382406]
[1742272274081,0.4830756,83149.0,83148.0,0.07382406]
[1742272274682,0.002,83149.0,83148.0,0.19410106]
[1742272274985,0.1222756,83149.0,83148.0,0.31002106]
[1742272275170,0.002,83149.0,83148.0,0.59002106]
[1742272275482,0.77602,83166.0,83148.0,0.59002106]
[1742272275483,0.3608,83178.0,83156.0,0.1202655]
[1742272275682,0.1993384,83162.0,83161.0,0.1202582]
[1742272275874,0.0601163,83179.0,83174.0,0.1803513]
[1742272276178,0.0601193,83175.0,83174.0,0.4503513]
[1742272276374,0.0601193,83175.0,83174.0,0.5662713]
[1742272278082,0.120236,83177.0,83176.0,0.1202351]
[1742272278385,0.120236,83177.0,83176.0,0.13206212]
[1742272278588,0.182236,83177.0,83176.0,0.13206212]
[1742272278979,0.182236,83177.0,83176.0,0.19686212]
[1742272279174,0.182236,83177.0,83176.0,0.21686212]
[1742272280088,0.151736,83177.0,83176.0,0.22585906]
[1742272280789,0.0315,83177.0,83176.0,0.22585906]
[1742272280981,0.1517351,83177.0,83176.0,0.22585906]
[1742272281182,0.1527351,83177.0,83176.0,0.22585906]
[1742272281699,0.1537351,83177.0,83176.0,0.22585906]
[1742272281891,0.002,83177.0,83176.0,0.50585906]
[1742272282189,0.002,83177.0,83176.0,0.86177906]
[1742272282402,0.00018031,83183.0,83182.0,0.1202279]
[1742272282586,0.00018031,83183.0,83182.0,0.5261479]
[1742272283182,0.00018031,83183.0,83182.0,0.5785479]
[1742272284180,0.12040671,83183.0,83182.0,0.5785479]
[1742272285087,0.15300671,83183.0,83182.0,0.5785479]
[1742272285285,0.15600671,83183.0,83182.0,0.5785479]
[1742272289194,0.15600671,83183.0,83182.0,0.9393479]
[1742272290992,0.15300671,83183.0,83182.0,0.9413479]
[1742272291691,0.15100671,83183.0,83182.0,0.9443479]
[1742272292293,0.15100671,83183.0,83182.0,0.9413479]
[1742272292492,0.15100671,83183.0,83182.0,0.9443479]
[1742272293190,0.15100671,83183.0,83182.0,0.9413479]
[1742272293396,0.15100671,83183.0,83182.0,0.9443479]
[1742272294793,0.15100671,83183.0,83182.0,0.9413479]
[1742272295092,0.15100671,83183.0,83182.0,0.9423479]
[1742272295300,0.15100671,83183.0,83182.0,0.9443479]
[1742272297287,0.15100671,83183.0,83182.0,0.8084279]
[1742272297484,0.15100671,83183.0,83182.0,0.9243079]
[1742272297683,0.15100671,83183.0,83182.0,0.3628]
[1742272297891,0.15100671,83183.0,83182.0,0.3658]
[1742272298488,0.15100671,83183.0,83182.0,0.3638]
[1742272298684,0.15100671,83183.0,83182.0,0.3658]
[1742272299192,0.15100671,83183.0,83182.0,0.003]
[1742272299394,0.15100671,83183.0,83180.0,0.11588]
[1742272299395,0.1202293,83181.0,83180.0,0.11588]
[1742272299598,0.1182293,83181.0,83180.0,0.11588]
[1742272301591,0.1192293,83181.0,83180.0,0.11588]
[1742272302199,0.1182293,83181.0,83180.0,0.11588]
[1742272302789,0.1202293,83181.0,83180.0,0.11588]
[1742272304296,0.1202351,83177.0,83176.0,0.12770702]
[1742272304500,0.1202351,83177.0,83166.0,0.42110541]
[1742272304501,0.1202496,83167.0,83166.0,0.36098031]
[1742272304702,0.1202496,83167.0,83166.0,0.00018031]
[1742272305300,0.1829496,83167.0,83166.0,0.00018031]
[1742272306005,0.1829496,83167.0,83166.0,0.00418031]
[1742272306594,0.1829496,83167.0,83166.0,0.00718031]
[1742272310494,0.1829496,83167.0,83166.0,0.00318031]
[1742272310792,0.1829496,83167.0,83166.0,0.00418031]
[1742272311493,0.1202597,83160.0,83159.0,0.01193456]
[1742272311707,0.1202684,83154.0,83153.0,0.1202698]
[1742272312609,0.1202713,83152.0,83151.0,0.060136]
[1742272312996,0.1182713,83152.0,83151.0,0.060136]
[1742272313401,0.1182713,83152.0,83151.0,0.07212722]
[1742272313595,0.1172713,83152.0,83151.0,0.07212722]
[1742272314304,0.1172713,83152.0,83151.0,0.07612722]
[1742272314908,0.1172713,83152.0,83151.0,0.07812722]
[1742272321400,0.1808713,83152.0,83151.0,0.17052722]
[1742272323306,0.1808713,83152.0,83151.0,0.01799122]
[1742272326607,0.1808713,83152.0,83151.0,0.04849122]
[1742272328112,0.1808713,83152.0,83151.0,0.16876392]
[1742272331904,0.1808713,83152.0,83151.0,0.04849122]
[1742272335612,0.2967913,83152.0,83151.0,0.006]
[1742272335914,0.1202799,83146.0,83143.0,0.01190241]
[1742272336115,0.4810799,83146.0,83143.0,0.01190241]
[1742272336718,0.5473799,83146.0,83143.0,0.01190241]
[1742272337021,0.5473799,83146.0,83141.0,0.00721666]
[1742272337728,0.5473799,83146.0,83142.0,0.01188312]
[1742272338718,0.5473799,83146.0,83141.0,0.00721666]
[1742272339929,0.5473799,83146.0,83142.0,0.01182291]
[1742272340129,0.5473799,83146.0,83142.0,0.04492291]
[1742272340728,0.5473799,83146.0,83142.0,0.0331]
[1742272341226,0.6632999,83146.0,83142.0,0.0331]
[1742272341433,0.6632999,83146.0,83141.0,0.00721666]
[1742272343335,0.6632999,83146.0,83141.0,0.01903837]
[1742272343530,0.5473799,83146.0,83142.0,0.2119851]
[1742272343828,0.5473799,83146.0,83143.0,0.1202835]
[1742272344134,0.5473799,83146.0,83142.0,0.211985]
[1742272344332,0.5473799,83146.0,83143.0,0.1202833]
[1742272344533,0.5473799,83146.0,83142.0,0.211985]
[1742272345035,0.5473799,83146.0,83142.0,0.0917]
[1742272346730,0.1865799,83146.0,83142.0,0.4525]
[1742272346935,0.1534799,83146.0,83145.0,0.12046171]
[1742272347433,0.1852799,83146.0,83145.0,0.18246171]
[1742272348737,0.1852799,83146.0,83145.0,0.29878171]
[1742272353726,0.1852799,83146.0,83145.0,0.17850031]
[1742272353923,0.1852799,83146.0,83145.0,0.29878171]
[1742272354530,0.1852799,83146.0,83145.0,0.17850031]
[1742272355231,0.1852799,83146.0,83145.0,0.00018031]
[1742272356437,0.1852799,83146.0,83145.0,0.12046171]
[1742272356641,0.1852799,83146.0,83145.0,0.21586171]
[1742272362044,0.1852799,83146.0,83145.0,0.09558031]
[1742272362539,0.1852799,83146.0,83145.0,0.00018031]
[1742272362845,0.1852799,83146.0,83145.0,0.12046171]
[1742272363845,0.1852799,83146.0,83145.0,0.18276171]
[1742272365434,0.1852799,83146.0,83145.0,0.19664957]
[1742272365746,0.11109959,83146.0,83145.0,0.42664957]
[1742272366139,0.0309,83147.0,83145.0,0.42664957]
[1742272366343,0.1529749,83151.0,83150.0,0.1202742]
[1742272366646,0.1202749,83151.0,83150.0,0.4002742]
[1742272366846,0.1509749,83151.0,83150.0,0.4957742]
[1742272367750,0.1529749,83151.0,83150.0,0.4957742]
[1742272368648,0.1839749,83151.0,83150.0,0.4957742]
[1742272369345,0.1819749,83151.0,83150.0,0.4957742]
[1742272375754,0.1819749,83151.0,83150.0,0.6123742]
[1742272378051,0.0617,83151.0,83150.0,0.6123742]
[1742272378247,0.0307,83151.0,83150.0,0.6123742]
[1742272378443,0.0601314,83158.0,83157.0,0.120264]
[1742272378444,0.0309,83158.0,83157.0,0.120264]
[1742272378647,0.0315,83161.0,83160.0,0.1202597]
[1742272378854,0.00018031,83162.0,83160.0,0.3702597]
[1742272379046,0.00018031,83162.0,83161.0,0.1515582]
[1742272379246,0.00018031,83162.0,83161.0,0.4626582]
[1742272379446,0.12043711,83162.0,83161.0,0.4626582]
[1742272379860,0.18363711,83162.0,83161.0,0.4626582]
[1742272380562,0.18563711,83162.0,83161.0,0.4626582]